[Event "Titled Tuesday Blitz May 10 Early 2022"]
[White "Bintang, Rasyid A. Hidayat"]
[Black "Maevsky, Nikolay"]
[WhiteFideId "7105355"]
[BlackFideId "4198220"]
[WhiteElo "2464"]
[BlackElo "2149"]
[Result "0-1"]
[Round "11"]
[TimeControl "180+1"]
[Date "2022.05.11"]
[WhiteClock "0:00:02"]
[BlackClock "0:00:04"]

1. d4 {[%clk 0:03:00]}  d5 {[%clk 0:02:59]} 2. Bf4 {[%clk 0:03:00]}  Nf6 {[%clk 0:02:59]} 3. e3 {[%clk 0:03:00]}  c5 {[%clk 0:02:59]} 4. Nf3 {[%clk 0:02:58]}  Nc6 {[%clk 0:02:58]} 5. Nbd2 {[%clk 0:02:58]}  Bg4 {[%clk 0:02:58]} 6. Bb5 {[%clk 0:02:56]}  cxd4 {[%clk 0:02:54]} 7. exd4 {[%clk 0:02:52]}  e6 {[%clk 0:02:53]} 8. c3 {[%clk 0:02:42]}  Bd6 {[%clk 0:02:48]} 9. Bxd6 {[%clk 0:02:42]}  Qxd6 {[%clk 0:02:48]} 10. h3 {[%clk 0:02:42]}  Bh5 {[%clk 0:02:41]} 11. O-O {[%clk 0:02:42]}  O-O {[%clk 0:02:40]} 12. Re1 {[%clk 0:02:42]}  Rac8 {[%clk 0:02:28]} 13. Nf1 {[%clk 0:02:40]}  Ne4 {[%clk 0:02:19]} 14. Bd3 {[%clk 0:02:30]}  Bg6 {[%clk 0:01:56]} 15. Bxe4 {[%clk 0:02:23]}  Bxe4 {[%clk 0:01:55]} 16. Ng3 {[%clk 0:02:22]}  Bg6 {[%clk 0:01:52]} 17. Ne5 {[%clk 0:02:20]}  Nxe5 {[%clk 0:01:49]} 18. Rxe5 {[%clk 0:02:21]}  f6 {[%clk 0:01:39]} 19. Re3 {[%clk 0:02:18]}  Rfe8 {[%clk 0:01:36]} 20. Qb3 {[%clk 0:02:13]}  Re7 {[%clk 0:01:26]} 21. Rae1 {[%clk 0:02:12]}  Rce8 {[%clk 0:01:26]} 22. Ne2 {[%clk 0:01:44]}  a6 {[%clk 0:01:24]} 23. g3 {[%clk 0:01:42]}  e5 {[%clk 0:01:17]} 24. Nc1 {[%clk 0:01:17]}  Bf7 {[%clk 0:01:15]} 25. Qd1 {[%clk 0:01:08]}  Qd7 {[%clk 0:01:07]} 26. Kh2 {[%clk 0:00:56]}  Qf5 {[%clk 0:01:02]} 27. Qd2 {[%clk 0:00:37]}  Be6 {[%clk 0:00:51]} 28. h4 {[%clk 0:00:25]}  Bf7 {[%clk 0:00:45]} 29. Kg1 {[%clk 0:00:21]}  h6 {[%clk 0:00:43]} 30. Qd3 {[%clk 0:00:19]}  Qg4 {[%clk 0:00:36]} 31. Qe2 {[%clk 0:00:17]}  Qf5 {[%clk 0:00:35]} 32. Qd3 {[%clk 0:00:14]}  e4 {[%clk 0:00:26]} 33. Qf1 {[%clk 0:00:12]}  g5 {[%clk 0:00:26]} 34. hxg5 {[%clk 0:00:11]}  hxg5 {[%clk 0:00:26]} 35. f3 {[%clk 0:00:10]}  Qg6 {[%clk 0:00:22]} 36. fxe4 {[%clk 0:00:10]}  dxe4 {[%clk 0:00:22]} 37. Ne2 {[%clk 0:00:08]}  Kg7 {[%clk 0:00:21]} 38. Qf2 {[%clk 0:00:08]}  Rh8 {[%clk 0:00:19]} 39. g4 {[%clk 0:00:08]}  Rh4 {[%clk 0:00:16]} 40. Rg3 {[%clk 0:00:06]}  Be6 {[%clk 0:00:15]} 41. Qg2 {[%clk 0:00:06]}  Re8 {[%clk 0:00:12]} 42. b3 {[%clk 0:00:06]}  Bd7 {[%clk 0:00:11]} 43. d5 {[%clk 0:00:06]}  Qf7 {[%clk 0:00:10]} 44. c4 {[%clk 0:00:06]}  Qf8 {[%clk 0:00:08]} 45. Nd4 {[%clk 0:00:06]}  Qc5 {[%clk 0:00:08]} 46. Qf2 {[%clk 0:00:06]}  Qd6 {[%clk 0:00:04]} 47. Kg2 {[%clk 0:00:04]}  Reh8 {[%clk 0:00:04]} 48. Kg1 {[%clk 0:00:02]}  Rh1+ {[%clk 0:00:04]} 49. Kg2 {[%clk 0:00:02]}  R8h2# {[%clk 0:00:04]} 0-1


[Site "https://www.chess.com"]

[Event "Titled Tuesday Blitz May 10 Early 2022"]
[White "Clawitter, Craig"]
[Black "Tuleyeva-Aketayeva, Dana"]
[WhiteFideId "2023105"]
[BlackFideId "13701932"]
[WhiteElo "2266"]
[BlackElo "1875"]
[Result "1-0"]
[Round "11"]
[TimeControl "180+1"]
[Date "2022.05.11"]
[WhiteClock "0:01:39"]
[BlackClock "0:00:07"]

1. e4 {[%clk 0:03:00]}  c5 {[%clk 0:02:58]} 2. Nf3 {[%clk 0:03:01]}  Nc6 {[%clk 0:02:58]} 3. d4 {[%clk 0:03:01]}  cxd4 {[%clk 0:02:58]} 4. Nxd4 {[%clk 0:03:02]}  g6 {[%clk 0:02:57]} 5. Nc3 {[%clk 0:03:02]}  Bg7 {[%clk 0:02:57]} 6. Be3 {[%clk 0:03:03]}  Nf6 {[%clk 0:02:56]} 7. Bc4 {[%clk 0:03:03]}  O-O {[%clk 0:02:55]} 8. Bb3 {[%clk 0:03:03]}  Na5 {[%clk 0:02:47]} 9. e5 {[%clk 0:03:02]}  Ne8 {[%clk 0:02:42]} 10. Bxf7+ {[%clk 0:02:58]}  Rxf7 {[%clk 0:02:02]} 11. Ne6 {[%clk 0:02:56]}  Qc7 {[%clk 0:01:32]} 12. Nxc7 {[%clk 0:02:55]}  Nxc7 {[%clk 0:01:33]} 13. Nd5 {[%clk 0:02:40]}  Bxe5 {[%clk 0:01:13]} 14. Nxc7 {[%clk 0:02:20]}  Bxc7 {[%clk 0:01:14]} 15. O-O {[%clk 0:02:20]}  Nc4 {[%clk 0:01:08]} 16. Qd5 {[%clk 0:02:17]}  Nb6 {[%clk 0:00:20]} 17. Qb3 {[%clk 0:02:09]}  d6 {[%clk 0:00:14]} 18. Rae1 {[%clk 0:01:57]}  Kg7 {[%clk 0:00:12]} 19. f4 {[%clk 0:01:54]}  Bf5 {[%clk 0:00:08]} 20. Bd4+ {[%clk 0:01:52]}  e5 {[%clk 0:00:08]} 21. fxe5 {[%clk 0:01:51]}  dxe5 {[%clk 0:00:08]} 22. Bxe5+ {[%clk 0:01:47]}  Bxe5 {[%clk 0:00:06]} 23. Rxe5 {[%clk 0:01:48]}  Kg8 {[%clk 0:00:07]} 24. g4 {[%clk 0:01:39]} 1-0


[Site "https://www.chess.com"]

[Event "Titled Tuesday Blitz May 10 Early 2022"]
[White "Cramling Bellon, Anna"]
[Black "parintele_chess"]
[WhiteFideId "32009232"]
[WhiteElo "1905"]
[BlackElo "2218"]
[Result "1-0"]
[Round "11"]
[TimeControl "180+1"]
[Date "2022.05.11"]
[WhiteClock "0:00:07"]
[BlackClock "0:00:03"]

1. d4 {[%clk 0:03:00]}  d5 {[%clk 0:02:59]} 2. c4 {[%clk 0:02:59]}  e6 {[%clk 0:02:59]} 3. Nc3 {[%clk 0:02:59]}  a6 {[%clk 0:02:59]} 4. cxd5 {[%clk 0:02:58]}  exd5 {[%clk 0:03:00]} 5. Nf3 {[%clk 0:02:58]}  Nf6 {[%clk 0:02:59]} 6. Bg5 {[%clk 0:02:57]}  Be7 {[%clk 0:02:59]} 7. e3 {[%clk 0:02:56]}  c6 {[%clk 0:02:58]} 8. Bd3 {[%clk 0:02:52]}  Nbd7 {[%clk 0:02:58]} 9. O-O {[%clk 0:02:52]}  O-O {[%clk 0:02:58]} 10. Qc2 {[%clk 0:02:52]}  Re8 {[%clk 0:02:58]} 11. Ne5 {[%clk 0:02:52]}  h6 {[%clk 0:02:54]} 12. Bh4 {[%clk 0:02:50]}  Nxe5 {[%clk 0:02:52]} 13. dxe5 {[%clk 0:02:50]}  Ng4 {[%clk 0:02:51]} 14. Bg3 {[%clk 0:02:38]}  Bf8 {[%clk 0:02:33]} 15. Rad1 {[%clk 0:01:37]}  Nxe5 {[%clk 0:02:26]} 16. Bh7+ {[%clk 0:01:14]}  Kh8 {[%clk 0:02:25]} 17. Bf5 {[%clk 0:01:15]}  Qf6 {[%clk 0:01:49]} 18. Bxc8 {[%clk 0:01:09]}  Raxc8 {[%clk 0:01:50]} 19. Na4 {[%clk 0:01:05]}  Nd7 {[%clk 0:01:15]} 20. Rfe1 {[%clk 0:00:58]}  b5 {[%clk 0:01:07]} 21. Nc3 {[%clk 0:00:57]}  Bd6 {[%clk 0:00:33]} 22. Bxd6 {[%clk 0:00:41]}  Qxd6 {[%clk 0:00:34]} 23. e4 {[%clk 0:00:40]}  d4 {[%clk 0:00:25]} 24. Ne2 {[%clk 0:00:34]}  c5 {[%clk 0:00:24]} 25. Ng3 {[%clk 0:00:34]}  Qf4 {[%clk 0:00:17]} 26. Nf5 {[%clk 0:00:25]}  g6 {[%clk 0:00:11]} 27. g3 {[%clk 0:00:25]}  Qg5 {[%clk 0:00:07]} 28. Nd6 {[%clk 0:00:24]}  Ne5 {[%clk 0:00:07]} 29. f4 {[%clk 0:00:14]}  Nf3+ {[%clk 0:00:07]} 30. Kf2 {[%clk 0:00:11]}  Qh5 {[%clk 0:00:07]} 31. Rh1 {[%clk 0:00:07]}  Kg7 {[%clk 0:00:02]} 32. Nxe8+ {[%clk 0:00:07]}  Rxe8 {[%clk 0:00:03]} 33. Qe2 {[%clk 0:00:07]} 1-0


[Site "https://www.chess.com"]

[Event "Titled Tuesday Blitz May 10 Early 2022"]
[White "Czerw, Dawid"]
[Black "Arabidze, Meri"]
[WhiteFideId "1145746"]
[BlackFideId "13604040"]
[WhiteElo "2125"]
[BlackElo "2335"]
[Result "1-0"]
[Round "11"]
[TimeControl "180+1"]
[Date "2022.05.11"]
[WhiteClock "0:00:04"]
[BlackClock "0:00:03"]

1. d4 {[%clk 0:03:00]}  d5 {[%clk 0:02:59]} 2. c4 {[%clk 0:03:00]}  dxc4 {[%clk 0:02:59]} 3. e4 {[%clk 0:03:00]}  Nc6 {[%clk 0:02:58]} 4. Be3 {[%clk 0:02:56]}  Nf6 {[%clk 0:02:47]} 5. Nc3 {[%clk 0:02:53]}  e5 {[%clk 0:02:47]} 6. d5 {[%clk 0:02:49]}  Na5 {[%clk 0:02:39]} 7. Bxc4 {[%clk 0:02:42]}  Nxc4 {[%clk 0:02:38]} 8. Qa4+ {[%clk 0:02:42]}  Bd7 {[%clk 0:02:39]} 9. Qxc4 {[%clk 0:02:42]}  Bd6 {[%clk 0:02:37]} 10. Nge2 {[%clk 0:02:35]}  a6 {[%clk 0:02:37]} 11. f3 {[%clk 0:02:34]}  O-O {[%clk 0:02:34]} 12. O-O {[%clk 0:02:34]}  b5 {[%clk 0:02:32]} 13. Qd3 {[%clk 0:02:32]}  Nh5 {[%clk 0:02:24]} 14. g4 {[%clk 0:02:20]}  Nf4 {[%clk 0:02:13]} 15. Nxf4 {[%clk 0:02:18]}  exf4 {[%clk 0:02:14]} 16. Bd4 {[%clk 0:02:15]}  f6 {[%clk 0:02:11]} 17. Ne2 {[%clk 0:02:08]}  c5 {[%clk 0:02:07]} 18. dxc6 {[%clk 0:02:00]}  Bxc6 {[%clk 0:02:07]} 19. Rfd1 {[%clk 0:01:57]}  Qe7 {[%clk 0:01:56]} 20. Rac1 {[%clk 0:01:53]}  Bb7 {[%clk 0:01:53]} 21. Bb6 {[%clk 0:01:48]}  Be5 {[%clk 0:01:48]} 22. Nd4 {[%clk 0:01:44]}  Bxd4+ {[%clk 0:01:06]} 23. Qxd4 {[%clk 0:01:36]}  Rfc8 {[%clk 0:00:53]} 24. Bc5 {[%clk 0:01:02]}  Qf7 {[%clk 0:00:50]} 25. Qd7 {[%clk 0:00:53]}  Bc6 {[%clk 0:00:38]} 26. Qxf7+ {[%clk 0:00:45]}  Kxf7 {[%clk 0:00:39]} 27. Rd6 {[%clk 0:00:41]}  Be8 {[%clk 0:00:38]} 28. Rb6 {[%clk 0:00:30]}  a5 {[%clk 0:00:32]} 29. Rb7+ {[%clk 0:00:29]}  Kg6 {[%clk 0:00:28]} 30. h4 {[%clk 0:00:28]}  h5 {[%clk 0:00:24]} 31. gxh5+ {[%clk 0:00:20]}  Kh6 {[%clk 0:00:25]} 32. a3 {[%clk 0:00:18]}  Bxh5 {[%clk 0:00:21]} 33. Kf2 {[%clk 0:00:19]}  b4 {[%clk 0:00:19]} 34. axb4 {[%clk 0:00:18]}  axb4 {[%clk 0:00:18]} 35. Rxb4 {[%clk 0:00:18]}  Rd8 {[%clk 0:00:15]} 36. Rd4 {[%clk 0:00:17]}  Rdc8 {[%clk 0:00:11]} 37. Rd2 {[%clk 0:00:11]}  Rab8 {[%clk 0:00:10]} 38. Rdc2 {[%clk 0:00:08]}  Rb3 {[%clk 0:00:10]} 39. Rc3 {[%clk 0:00:06]}  Rxb2+ {[%clk 0:00:09]} 40. R1c2 {[%clk 0:00:07]}  Rb1 {[%clk 0:00:06]} 41. Rc1 {[%clk 0:00:07]}  Rb5 {[%clk 0:00:06]} 42. Bd4 {[%clk 0:00:06]}  Rxc3 {[%clk 0:00:05]} 43. Bxc3 {[%clk 0:00:07]}  Rb3 {[%clk 0:00:05]} 44. Rc2 {[%clk 0:00:06]}  Ra3 {[%clk 0:00:06]} 45. Rc1 {[%clk 0:00:06]}  Ra2+ {[%clk 0:00:06]} 46. Kf1 {[%clk 0:00:02]}  Bxf3 {[%clk 0:00:07]} 47. e5 {[%clk 0:00:03]}  Bg2+ {[%clk 0:00:06]} 48. Kg1 {[%clk 0:00:03]}  fxe5 {[%clk 0:00:06]} 49. Bxe5 {[%clk 0:00:03]}  f3 {[%clk 0:00:07]} 50. Rc6+ {[%clk 0:00:02]}  Kh5 {[%clk 0:00:07]} 51. Bxg7 {[%clk 0:00:02]}  Bh3 {[%clk 0:00:04]} 52. Rh6+ {[%clk 0:00:02]}  Kg4 {[%clk 0:00:04]} 53. Rg6+ {[%clk 0:00:03]}  Kf5 {[%clk 0:00:03]} 54. Rg5+ {[%clk 0:00:03]}  Kf4 {[%clk 0:00:03]} 55. Be5+ {[%clk 0:00:03]}  Ke3 {[%clk 0:00:04]} 56. Bg3 {[%clk 0:00:04]}  Rg2+ {[%clk 0:00:03]} 57. Kh1 {[%clk 0:00:04]} 1-0


[Site "https://www.chess.com"]

[Event "Titled Tuesday Blitz May 10 Early 2022"]
[White "Danaci, Ege"]
[Black "Agasarov, Benik"]
[WhiteFideId "34506748"]
[BlackFideId "13314823"]
[WhiteElo "1799"]
[BlackElo "2553"]
[Result "0-1"]
[Round "11"]
[TimeControl "180+1"]
[Date "2022.05.11"]
[WhiteClock "0:00:22"]
[BlackClock "0:01:06"]

1. e4 {[%clk 0:02:49]}  c5 {[%clk 0:02:58]} 2. Nc3 {[%clk 0:02:48]}  a6 {[%clk 0:02:57]} 3. g3 {[%clk 0:02:48]}  b5 {[%clk 0:02:54]} 4. Bg2 {[%clk 0:02:49]}  Bb7 {[%clk 0:02:50]} 5. d3 {[%clk 0:02:49]}  e6 {[%clk 0:02:50]} 6. Nh3 {[%clk 0:02:48]}  d6 {[%clk 0:02:44]} 7. O-O {[%clk 0:02:48]}  Nd7 {[%clk 0:02:44]} 8. f4 {[%clk 0:02:48]}  Ne7 {[%clk 0:02:44]} 9. f5 {[%clk 0:02:48]}  b4 {[%clk 0:02:39]} 10. Ne2 {[%clk 0:02:48]}  exf5 {[%clk 0:02:38]} 11. exf5 {[%clk 0:02:49]}  Bxg2 {[%clk 0:02:38]} 12. Kxg2 {[%clk 0:02:50]}  Qc7 {[%clk 0:02:37]} 13. Nef4 {[%clk 0:02:30]}  Qb7+ {[%clk 0:02:36]} 14. Qf3 {[%clk 0:02:26]}  Qxf3+ {[%clk 0:02:33]} 15. Rxf3 {[%clk 0:02:26]}  Ne5 {[%clk 0:02:32]} 16. Rf1 {[%clk 0:02:25]}  O-O-O {[%clk 0:02:30]} 17. d4 {[%clk 0:02:11]}  cxd4 {[%clk 0:02:28]} 18. Nd3 {[%clk 0:02:11]}  N7c6 {[%clk 0:02:22]} 19. Bd2 {[%clk 0:02:05]}  Nc4 {[%clk 0:02:15]} 20. Bf4 {[%clk 0:01:48]}  d5 {[%clk 0:02:09]} 21. Rae1 {[%clk 0:01:46]}  Bd6 {[%clk 0:02:06]} 22. Ng5 {[%clk 0:01:40]}  Bxf4 {[%clk 0:02:04]} 23. Rxf4 {[%clk 0:01:38]}  Rd7 {[%clk 0:01:59]} 24. Nf3 {[%clk 0:01:35]}  Ne3+ {[%clk 0:01:57]} 25. Kh1 {[%clk 0:01:27]}  Rc7 {[%clk 0:01:20]} 26. Nxd4 {[%clk 0:01:14]}  Nxd4 {[%clk 0:01:20]} 27. Rxe3 {[%clk 0:01:15]}  Nxc2 {[%clk 0:01:20]} 28. Re5 {[%clk 0:01:14]}  f6 {[%clk 0:01:15]} 29. Rxd5 {[%clk 0:01:10]}  Ne3 {[%clk 0:01:13]} 30. Rc5 {[%clk 0:01:11]}  Rd8 {[%clk 0:01:11]} 31. Rxc7+ {[%clk 0:00:31]}  Kxc7 {[%clk 0:01:12]} 32. Nf2 {[%clk 0:00:31]}  Rd2 {[%clk 0:01:10]} 33. Rf3 {[%clk 0:00:23]}  Rxb2 {[%clk 0:01:06]} 34. Rxe3 {[%clk 0:00:23]}  Rxf2 {[%clk 0:01:06]} 35. Re7+ {[%clk 0:00:22]}  Kd6 {[%clk 0:01:06]} 36. Rxg7 {[%clk 0:00:22]}  Rxa2 {[%clk 0:01:05]} 37. Rxh7 {[%clk 0:00:21]}  b3 {[%clk 0:01:06]} 38. Rb7 {[%clk 0:00:22]}  b2 {[%clk 0:01:06]} 0-1


[Site "https://www.chess.com"]

[Event "Titled Tuesday Blitz May 10 Early 2022"]
[White "Devaev, Alexander"]
[Black "Legenia, Artem"]
[WhiteFideId "4169395"]
[BlackFideId "14136945"]
[WhiteElo "2185"]
[BlackElo "1936"]
[Result "1-0"]
[Round "11"]
[TimeControl "180+1"]
[Date "2022.05.11"]
[WhiteClock "0:00:05"]
[BlackClock "0:00:11"]

1. d4 {[%clk 0:03:00]}  d5 {[%clk 0:02:59]} 2. c4 {[%clk 0:03:01]}  e6 {[%clk 0:02:59]} 3. cxd5 {[%clk 0:03:00]}  exd5 {[%clk 0:02:59]} 4. Nc3 {[%clk 0:03:01]}  Nf6 {[%clk 0:02:59]} 5. Bg5 {[%clk 0:03:01]}  c6 {[%clk 0:02:59]} 6. e3 {[%clk 0:03:02]}  Be7 {[%clk 0:02:59]} 7. Bxf6 {[%clk 0:03:02]}  Bxf6 {[%clk 0:02:59]} 8. Bd3 {[%clk 0:03:03]}  g6 {[%clk 0:02:59]} 9. Nf3 {[%clk 0:03:02]}  Bg4 {[%clk 0:02:59]} 10. Qc2 {[%clk 0:03:02]}  Bxf3 {[%clk 0:02:58]} 11. gxf3 {[%clk 0:03:02]}  Nd7 {[%clk 0:02:55]} 12. O-O-O {[%clk 0:03:02]}  Qc7 {[%clk 0:02:52]} 13. Kb1 {[%clk 0:03:02]}  O-O-O {[%clk 0:02:51]} 14. Rc1 {[%clk 0:03:02]}  Qa5 {[%clk 0:02:39]} 15. Qb3 {[%clk 0:03:00]}  Kb8 {[%clk 0:02:35]} 16. h3 {[%clk 0:02:56]}  Rhe8 {[%clk 0:02:18]} 17. Na4 {[%clk 0:02:50]}  Bg7 {[%clk 0:02:03]} 18. Rxc6 {[%clk 0:02:36]}  Ka8 {[%clk 0:02:03]} 19. Rc2 {[%clk 0:02:31]}  Bf8 {[%clk 0:01:57]} 20. Bb5 {[%clk 0:02:23]}  Qb4 {[%clk 0:01:55]} 21. Rc7 {[%clk 0:01:25]}  Qxb3 {[%clk 0:01:47]} 22. axb3 {[%clk 0:01:25]}  Re7 {[%clk 0:01:48]} 23. Rhc1 {[%clk 0:01:24]}  Kb8 {[%clk 0:01:48]} 24. Bxd7 {[%clk 0:01:06]}  Rexd7 {[%clk 0:01:47]} 25. Rxd7 {[%clk 0:01:06]}  Rxd7 {[%clk 0:01:47]} 26. Kc2 {[%clk 0:00:36]}  g5 {[%clk 0:01:35]} 27. Kd3 {[%clk 0:00:33]}  Rd6 {[%clk 0:01:35]} 28. Nc3 {[%clk 0:00:29]}  Be7 {[%clk 0:01:27]} 29. Rh1 {[%clk 0:00:21]}  a6 {[%clk 0:01:22]} 30. Ne2 {[%clk 0:00:18]}  Rb6 {[%clk 0:01:21]} 31. Kc2 {[%clk 0:00:18]}  Rc6+ {[%clk 0:01:20]} 32. Nc3 {[%clk 0:00:18]}  Bb4 {[%clk 0:01:15]} 33. Kd3 {[%clk 0:00:19]}  Bxc3 {[%clk 0:01:15]} 34. bxc3 {[%clk 0:00:20]}  Rh6 {[%clk 0:01:14]} 35. c4 {[%clk 0:00:17]}  dxc4+ {[%clk 0:01:13]} 36. bxc4 {[%clk 0:00:14]}  Kc7 {[%clk 0:01:11]} 37. Ke4 {[%clk 0:00:13]}  b5 {[%clk 0:00:58]} 38. cxb5 {[%clk 0:00:12]}  axb5 {[%clk 0:00:58]} 39. Kd5 {[%clk 0:00:10]}  Kb6 {[%clk 0:00:57]} 40. e4 {[%clk 0:00:08]}  Rc6 {[%clk 0:00:43]} 41. e5 {[%clk 0:00:07]}  b4 {[%clk 0:00:44]} 42. Ke4 {[%clk 0:00:04]}  Rc4 {[%clk 0:00:40]} 43. Ra1 {[%clk 0:00:02]}  Kb5 {[%clk 0:00:40]} 44. Kd5 {[%clk 0:00:03]}  Rc3 {[%clk 0:00:36]} 45. Ra8 {[%clk 0:00:03]}  Rxf3 {[%clk 0:00:36]} 46. Ke4 {[%clk 0:00:01]}  Rxf2 {[%clk 0:00:36]} 47. d5 {[%clk 0:00:02]}  b3 {[%clk 0:00:31]} 48. d6 {[%clk 0:00:02]}  Rd2 {[%clk 0:00:30]} 49. Rb8+ {[%clk 0:00:02]}  Kc4 {[%clk 0:00:30]} 50. Kf5 {[%clk 0:00:02]}  Kc3 {[%clk 0:00:25]} 51. Kxg5 {[%clk 0:00:02]}  Kc2 {[%clk 0:00:22]} 52. Kf6 {[%clk 0:00:02]}  b2 {[%clk 0:00:20]} 53. Kxf7 {[%clk 0:00:02]}  b1=Q {[%clk 0:00:18]} 54. Rxb1 {[%clk 0:00:03]}  Kxb1 {[%clk 0:00:19]} 55. Ke7 {[%clk 0:00:03]}  Re2 {[%clk 0:00:17]} 56. e6 {[%clk 0:00:03]}  Re3 {[%clk 0:00:16]} 57. d7 {[%clk 0:00:04]}  Rxh3 {[%clk 0:00:11]} 58. d8=Q {[%clk 0:00:05]} 1-0


[Site "https://www.chess.com"]

[Event "Titled Tuesday Blitz May 10 Early 2022"]
[White "Wagner, Dinara"]
[Black "Bilych, Olexiy"]
[WhiteFideId "24157570"]
[BlackFideId "14156504"]
[WhiteElo "2216"]
[BlackElo "2176"]
[Result "1-0"]
[Round "11"]
[TimeControl "180+1"]
[Date "2022.05.11"]
[WhiteClock "0:00:14"]
[BlackClock "0:00:05"]

1. d4 {[%clk 0:03:00]}  Nf6 {[%clk 0:02:58]} 2. c4 {[%clk 0:03:01]}  e6 {[%clk 0:02:58]} 3. Nf3 {[%clk 0:03:01]}  d5 {[%clk 0:02:58]} 4. g3 {[%clk 0:03:02]}  Bd6 {[%clk 0:02:54]} 5. Bg2 {[%clk 0:03:01]}  O-O {[%clk 0:02:54]} 6. O-O {[%clk 0:03:01]}  c6 {[%clk 0:02:49]} 7. Nc3 {[%clk 0:02:43]}  Nbd7 {[%clk 0:02:48]} 8. Bg5 {[%clk 0:02:33]}  h6 {[%clk 0:02:30]} 9. Bxf6 {[%clk 0:02:33]}  Nxf6 {[%clk 0:02:30]} 10. Qd3 {[%clk 0:02:33]}  Rb8 {[%clk 0:02:13]} 11. e4 {[%clk 0:02:33]}  dxc4 {[%clk 0:02:11]} 12. Qxc4 {[%clk 0:02:33]}  b5 {[%clk 0:02:12]} 13. Qe2 {[%clk 0:02:26]}  b4 {[%clk 0:02:09]} 14. Na4 {[%clk 0:02:21]}  Qa5 {[%clk 0:02:09]} 15. e5 {[%clk 0:01:23]}  Qxa4 {[%clk 0:02:07]} 16. exf6 {[%clk 0:01:08]}  gxf6 {[%clk 0:02:06]} 17. Qd2 {[%clk 0:01:04]}  Kg7 {[%clk 0:02:03]} 18. Rfe1 {[%clk 0:01:05]}  b3 {[%clk 0:01:55]} 19. a3 {[%clk 0:01:03]}  Qc4 {[%clk 0:01:11]} 20. Re4 {[%clk 0:01:01]}  Qc2 {[%clk 0:01:10]} 21. Rg4+ {[%clk 0:00:51]}  Kh7 {[%clk 0:01:09]} 22. Qe3 {[%clk 0:00:51]}  f5 {[%clk 0:00:57]} 23. Rh4 {[%clk 0:00:27]}  f4 {[%clk 0:00:57]} 24. gxf4 {[%clk 0:00:17]}  Qxb2 {[%clk 0:00:45]} 25. Re1 {[%clk 0:00:17]}  f5 {[%clk 0:00:37]} 26. Ng5+ {[%clk 0:00:16]}  Kg7 {[%clk 0:00:37]} 27. Rxh6 {[%clk 0:00:16]}  Rh8 {[%clk 0:00:21]} 28. Rxe6 {[%clk 0:00:13]}  Bxe6 {[%clk 0:00:17]} 29. Qxe6 {[%clk 0:00:13]}  Rhf8 {[%clk 0:00:11]} 30. Qxd6 {[%clk 0:00:13]}  Rf6 {[%clk 0:00:08]} 31. Qd7+ {[%clk 0:00:13]}  Kg8 {[%clk 0:00:05]} 32. Qh7+ {[%clk 0:00:13]}  Kf8 {[%clk 0:00:05]} 33. Qh8# {[%clk 0:00:14]} 1-0


[Site "https://www.chess.com"]

[Event "Titled Tuesday Blitz May 10 Early 2022"]
[White "Friedel, Tom"]
[Black "Quirke, Jeffrey"]
[WhiteFideId "2002108"]
[BlackFideId "2013029"]
[WhiteElo "2315"]
[BlackElo "2154"]
[Result "1-0"]
[Round "11"]
[TimeControl "180+1"]
[Date "2022.05.11"]
[WhiteClock "0:00:16"]
[BlackClock "0:00:01"]

1. e4 {[%clk 0:03:00]}  e5 {[%clk 0:02:58]} 2. Nf3 {[%clk 0:03:00]}  Nf6 {[%clk 0:02:58]} 3. Nc3 {[%clk 0:03:00]}  Nc6 {[%clk 0:02:57]} 4. Bb5 {[%clk 0:02:59]}  Bd6 {[%clk 0:02:43]} 5. O-O {[%clk 0:02:58]}  O-O {[%clk 0:02:42]} 6. d4 {[%clk 0:02:58]}  exd4 {[%clk 0:02:39]} 7. Nxd4 {[%clk 0:02:58]}  h6 {[%clk 0:02:31]} 8. Be3 {[%clk 0:02:44]}  Re8 {[%clk 0:02:29]} 9. f3 {[%clk 0:02:31]}  Bc5 {[%clk 0:02:14]} 10. Qd2 {[%clk 0:02:31]}  Bb6 {[%clk 0:01:41]} 11. Rad1 {[%clk 0:02:30]}  Qe7 {[%clk 0:01:41]} 12. Rfe1 {[%clk 0:01:50]}  Qf8 {[%clk 0:01:40]} 13. Nd5 {[%clk 0:01:35]}  Nxd5 {[%clk 0:01:37]} 14. exd5 {[%clk 0:01:36]}  Nxd4 {[%clk 0:01:34]} 15. Bxd4 {[%clk 0:01:37]}  Bxd4+ {[%clk 0:01:27]} 16. Qxd4 {[%clk 0:01:37]}  c6 {[%clk 0:01:28]} 17. Bc4 {[%clk 0:01:35]}  b6 {[%clk 0:01:11]} 18. d6 {[%clk 0:01:28]}  Bb7 {[%clk 0:01:06]} 19. Qf4 {[%clk 0:01:22]}  Rxe1+ {[%clk 0:00:59]} 20. Rxe1 {[%clk 0:01:22]}  Re8 {[%clk 0:00:56]} 21. Rxe8 {[%clk 0:01:15]}  Qxe8 {[%clk 0:00:55]} 22. Kf2 {[%clk 0:01:16]}  c5 {[%clk 0:00:49]} 23. h4 {[%clk 0:01:09]}  Bc6 {[%clk 0:00:48]} 24. h5 {[%clk 0:01:08]}  b5 {[%clk 0:00:43]} 25. Be2 {[%clk 0:01:03]}  Qe6 {[%clk 0:00:39]} 26. b3 {[%clk 0:00:58]}  Qf6 {[%clk 0:00:30]} 27. Qxf6 {[%clk 0:00:52]}  gxf6 {[%clk 0:00:31]} 28. Ke3 {[%clk 0:00:52]}  Kg7 {[%clk 0:00:30]} 29. Kf4 {[%clk 0:00:50]}  a6 {[%clk 0:00:23]} 30. Bd3 {[%clk 0:00:50]}  Bd5 {[%clk 0:00:20]} 31. Be4 {[%clk 0:00:49]}  Be6 {[%clk 0:00:18]} 32. a3 {[%clk 0:00:37]}  a5 {[%clk 0:00:17]} 33. Bd3 {[%clk 0:00:31]}  b4 {[%clk 0:00:17]} 34. axb4 {[%clk 0:00:26]}  axb4 {[%clk 0:00:16]} 35. Ke4 {[%clk 0:00:23]}  Kf8 {[%clk 0:00:17]} 36. Bc4 {[%clk 0:00:20]}  Ke8 {[%clk 0:00:13]} 37. Kd3 {[%clk 0:00:19]}  Bf5+ {[%clk 0:00:07]} 38. Kd2 {[%clk 0:00:17]}  Kf8 {[%clk 0:00:06]} 39. g4 {[%clk 0:00:17]}  Be6 {[%clk 0:00:05]} 40. Kd3 {[%clk 0:00:17]}  Ke8 {[%clk 0:00:03]} 41. Bxe6 {[%clk 0:00:17]}  dxe6 {[%clk 0:00:01]} 42. Kc4 {[%clk 0:00:18]}  Kd7 {[%clk 0:00:01]} 43. Kxc5 {[%clk 0:00:19]}  e5 {[%clk 0:00:01]} 44. Kd5 {[%clk 0:00:16]} 1-0


[Site "https://www.chess.com"]